Cogmind - Beta 16.1 @@@ ROGUE MODE // 2026.01.13 @ 21:29:23 Player: arkn Result: Destroyed by H-55 Commando with Assault Rifle Performance ------------- Evolutions (3) 1500 Regions Visited (7) 1400 Robots Destroyed (103) 515 Value Destroyed (3511) 3511 Prototype IDs (33) 660 Alien Tech Used (0) 0 Bonus (656) 656 TOTAL SCORE: 8242 Bonus ------- Follower Combat Kills 356 Aligned with FarCom 300 Cogmind --------- Core Integrity 0/700 Matter 260/300 Energy 289/290 System Corruption 5% Temperature Cool (0) Movement Hovering (162) Ox2 Location -7/Storage Parts ------- > --- POWER (2) -------- Improved Deuterium Engine > --- PROPULSION (4) --- Improved Airjet Improved Airjet Improved Airjet > --- UTILITY (4) ------ Advanced Heat Sink High-capacity Storage Unit Seismic Detector > --- WEAPON (3) ------- Powered Hammer Spear > --- INVENTORY (20) --- Aluminum Leg Carbon-fiber Leg Carbon-fiber Leg Improved Carbon-fiber Leg Improved Carbon-fiber Leg Improved Airjet Improved Airjet Flying Fortress v7 Improved Heat Sink Advanced Visual Processing Unit Particle Gun Flak Gun Flak Gun Flak Gun Mini Grenade Launcher Improved Datajack Botcube Peak State ------------ > --- POWER ------------ Light Nuclear Core Improved Deuterium Engine > --- PROPULSION ------- Improved Airjet Improved Airjet Improved Airjet Improved Airjet > --- UTILITY ---------- Improved Heat Sink Advanced Heat Sink High-capacity Storage Unit Seismic Detector > --- WEAPON ----------- Precision Assault Rifle Powered Hammer Spear > --- INVENTORY -------- Aluminum Leg Carbon-fiber Leg Carbon-fiber Leg Improved Carbon-fiber Leg Improved Carbon-fiber Leg Improved Airjet Improved Airjet Flying Fortress v7 Improved Heat Sink Advanced Visual Processing Unit Particle Gun Flak Gun Flak Gun Flak Gun Mini Grenade Launcher Improved Datajack Botcube [Rating: 59] Favorites ----------- Power Light Nuclear Core Engine Improved Deuterium Engine Power Core Light Nuclear Core Propulsion Light Treads Treads Light Treads Leg Aluminum Leg Wheel Wheel Hover Unit Improved Airjet Flight Unit Flying Fortress v7 Utility Improved Heat Sink Device Improved Heat Sink Storage High-capacity Storage Unit Processor Improved Signal Interpreter Protection Improved Utility Shielding Weapon Particle Gun Energy Gun Particle Gun Energy Cannon Cooled Particle Cannon Ballistic Gun Precision Assault Rifle Launcher Mini Grenade Launcher Special Weapon Mining Laser Impact Weapon Powered Hammer Piercing Weapon Spear Build | -11 -10 -10 -10 -9 -8 -7 -7 ------- Run | Yrd Mat Min Exi Min Mat Fac Sto Slots Evolved 6 | . . . . . 4 2 . Power 1 | . . . . . . 1 . Propulsion 2 | . . . . . 2 . . Utility 2 | . . . . . 2 . . Weapon 1 | . . . . . . 1 . Parts Attached 98 | 6 7 4 1 . 27 18 35 Power 15 | . 2 1 . . 2 6 4 Engine 10 | . 2 . . . 2 3 3 Core 5 | . . 1 . . . 3 1 Reactor . | . . . . . . . . Propulsion 33 | 2 . 1 . . 11 2 17 Treads 16 | 2 . 1 . . 9 2 2 Leg 8 | . . . . . . . 8 Wheel 2 | . . . . . . . 2 Hover 6 | . . . . . 2 . 4 Flight 1 | . . . . . . . 1 Utility 22 | 2 1 1 1 . 6 4 7 Device 16 | 2 . 1 . . 4 3 6 Storage 3 | . 1 . 1 . 1 . . Processor 1 | . . . . . . 1 . Hackware . | . . . . . . . . Protection 2 | . . . . . 1 . 1 Artifact . | . . . . . . . . Weapon 28 | 2 4 1 . . 8 6 7 Energy Gun 10 | . 2 . . . 5 1 2 Energy Cannon 3 | . 1 . . . 1 1 . Ballistic Gun 11 | 2 . . . . 2 3 4 Ballistic Cannon . | . . . . . . . . Launcher 1 | . . 1 . . . . . Special Weapon 1 | . 1 . . . . . . Impact Weapon 1 | . . . . . . 1 . Slashing Weapon . | . . . . . . . . Piercing Weapon 1 | . . . . . . . 1 Special Melee Weapon . | . . . . . . . . Unidentified Prototypes 10 | . . . . . 3 2 5 Parts Lost 34 | . . 1 . . 4 4 25 Power 6 | . . . . . 1 1 4 Propulsion 10 | . . 1 . . . 2 7 Utility 8 | . . . . . 3 . 5 Weapon 10 | . . . . . . 1 9 Highest Loss Streak 15 | . . 1 . . 2 2 15 To Critical Strikes . | . . . . . . . . Average Backups 11 | 2 5 6 7 8 12 14 14 Power . | . . . . . . . . Propulsion 1 | . 1 1 . 1 1 1 3 Utility 3 | . 1 1 2 3 4 5 3 Weapon 4 | . 2 4 4 4 5 6 5 Tool/Special . | . . . . . . . . Unused Backups 23 | . 1 1 . . 5 3 13 Power . | . . . . . . . . Propulsion 8 | . . 1 . . 1 . 6 Utility 5 | . . . . . 1 2 2 Weapon 9 | . 1 . . . 3 1 4 Tool/Special 1 | . . . . . . . 1 Average Slot Usage (%) 97 | . 98 99 100 100 98 99 89 Engine 5 | . 12 . . . 5 4 10 Core 7 | . . 13 14 14 3 9 2 Treads 26 | . 28 27 28 28 32 29 9 Hover 2 | . . . . . 3 . 9 Device 18 | . 19 14 14 14 21 21 16 Storage 9 | . 8 14 14 14 9 7 7 Protection 1 | . . . . . 5 . . Energy Gun 11 | . 4 27 28 28 12 6 1 Energy Cannon 2 | . 6 . . . 1 5 3 Ballistic Gun 5 | . 6 . . . 4 6 10 Impact Weapon 1 | . . . . . . 2 3 Peak Build Rating 59 | 9 11 15 17 17 37 44 59 Average Rating 30 | 5 10 12 15 17 32 42 46 On Entrance 17 | . 9 11 13 17 17 33 42 Avg Prop Armor Cover (%) 7 | . . . . . 5 . 13 Naked Turns . | . . . . . . . . Heaviest Build 86 | 5 16 17 32 32 66 78 86 Greatest Support 82 | 40 40 40 40 40 82 82 60 Greatest Overweight (x) 7 | . . . . . 1 1 7 Average Overweight (x) . | . . . . . . . 1 Largest Inventory Capacity 20 | 5 8 8 15 15 20 20 20 Average Capacity 16 | 5 6 8 14 15 18 20 20 Most Carried 20 | 5 8 8 13 13 20 20 20 Average Carried 15 | 3 6 7 11 13 18 19 18 Final Capacity 20 | 5 8 8 15 15 20 20 20 Final Carried 20 | 5 8 8 13 13 20 20 20 Scrap Suit Usage (%) 1 | . . . . . . . 1 Class Distribution -------------------- 42% | Mutant 31% | Scavenger-Mutant 24% | Scavenger-Skirmisher Dominant Class ---------------- Mutant | -10/Materials Mutant | -10/Mines Mutant | -10/Exiles Mutant | -9/Mines Scavenger-Mutant | -8/Materials Scavenger-Skirmisher | -7/Factory Scavenger-Skirmisher | -7/Storage Resources | -11 -10 -10 -10 -9 -8 -7 -7 ----------- Run | Yrd Mat Min Exi Min Mat Fac Sto Matter Collected 2215 | 281 19 166 . . 526 490 733 Remotely . | . . . . . . . . Salvage Created 3949 | 138 121 202 . . 1242 976 1270 Parts 246 | 10 12 18 . . 79 58 69 Haulers Intercepted 5 | . . . . . 2 1 2 Recyclers Shooed 2 | . . . . . 1 . 1 Parts Field Recycled . | . . . . . . . . Retrieved Matter . | . . . . . . . . Parts Self-Destructed . | . . . . . . . . Prevented . | . . . . . . . . Parts Restored . | . . . . . . . . Kills | -11 -10 -10 -10 -9 -8 -7 -7 ------- Run | Yrd Mat Min Exi Min Mat Fac Sto Combat Hostiles Destroyed 71 | . 4 11 . . 18 18 20 Melee 4 | . . . . . . . 4 Guns 49 | . 4 8 . . 17 9 11 Cannons 13 | . . . . . . 9 4 AOE 3 | . . 3 . . . . . Classes Destroyed 14 | 2 4 2 . . 2 2 2 Worker 6 | . . 1 . . 1 1 3 Builder 7 | . 1 . . . 1 2 3 Tunneler 3 | 2 . . . . 1 . . Hauler 5 | . . . . . 2 1 2 Recycler 2 | 1 . . . . 1 . . Mechanic 1 | . . . . . . . 1 Operator 1 | . . . . . . . 1 Watcher 7 | . 2 . . . 3 1 1 Swarmer 10 | . 3 6 . . . 1 . Grunt 35 | . 1 4 . . 8 8 14 Duelist 3 | . . . . . . 1 2 Sentry 14 | . . . . . 10 2 2 Demolisher 1 | . . 1 . . . . . Programmer 8 | . . . . . . 6 2 Best Kill Streak 6 | 2 2 4 . . 3 3 6 Combat Bots Only 5 | . 2 3 . . 3 3 5 Max Kills in Single Turn 2 | 1 1 2 . . 1 1 2 Gunslinging . | . . . . . . . . Exploded 2 | . . 2 . . . . . Melee 1 | . . . . . . . 1 Uniques/NPCs Destroyed . | . . . . . . . . Combat | -11 -10 -10 -10 -9 -8 -7 -7 -------- Run | Yrd Mat Min Exi Min Mat Fac Sto Hostile Shots Fired 609 | . 12 27 . . 130 126 314 Missed 164 | . 5 8 . . 38 39 74 Hits 445 | . 7 19 . . 92 87 240 Melee 12 | . . . . . . . 12 Projectile 433 | . 7 19 . . 92 87 228 AOE 6 | . 1 5 . . . . . Critical Strikes 19 | . . . . . 6 4 9 Actively Blocked 2 | . . . . . 2 . . Damage Taken 6334 | . 153 311 . . 1286 999 3585 Core 935 | . . 93 . . 132 109 601 Absorbed by Shields 160 | . . . . . 160 . . Redirected to Shielding 105 | . . . . . 105 . . Core Remaining (%) 79 | 100 . . . 62 76 . . Volleys Fired 248 | 13 26 18 . . 86 58 47 Largest 3 | 2 2 2 . . 2 3 3 Hottest 193 | 40 168 130 . . 138 156 193 Shots Fired 527 | 26 36 33 . . 166 140 126 Gun 416 | 26 16 30 . . 163 83 98 Cannon 96 | . 10 . . . 3 57 26 Launcher 5 | . . 3 . . . . 2 Special 10 | . 10 . . . . . . Kinetic 231 | 26 12 . . . 60 60 73 Thermal 287 | . 24 30 . . 102 80 51 Explosive 5 | . . 3 . . . . 2 Electromagnetic 4 | . . . . . 4 . . Robot Hit Streak 22 | 6 8 19 . . 13 22 13 Robot Miss Streak 6 | 2 2 2 . . 3 5 6 Penetration Max . | . . . . . . . . Secondary Targets 7 | . . 1 . . 3 . 3 Max Gunslinging Chain 1 | . . 1 . . 1 . 1 Shots Hit Robots 386 | 17 16 21 . . 118 91 123 Core Hits 187 | 6 7 14 . . 43 42 75 Critical Kills 3 | . . . . . 1 1 1 Critical Parts Destroyed 3 | . . . . . . 1 2 Critical Strikes 21 | . . 2 . . 4 5 10 Burn 8 | . . 2 . . 3 3 . Destroy 5 | . . . . . 1 2 2 Smash 1 | . . . . . . . 1 Impale 7 | . . . . . . . 7 Melee Attacks 71 | . . . . . . 11 60 Impact 23 | . . . . . . 11 12 Slashing . | . . . . . . . . Piercing 48 | . . . . . . . 48 Sneak Attacks 11 | . . . . . . 2 9 Combat Hostiles . | . . . . . . . . Follow-up Attacks 4 | . . . . . . . 4 Damage Inflicted 9054 | 184 226 626 . . 1955 2415 3648 Guns 5283 | 184 121 308 . . 1930 1119 1621 Cannons 1807 | . 81 . . . 25 1020 681 Explosions 419 | . . 318 . . . . 101 Melee 1513 | . . . . . . 276 1237 Ramming 8 | . . . . . . . 8 Kinetic 2838 | 184 63 . . . 662 818 1111 Thermal 4254 | . 163 308 . . 1271 1321 1191 Explosive 419 | . . 318 . . . . 101 Electromagnetic 22 | . . . . . 22 . . Impact 525 | . . . . . . 276 249 Slashing . | . . . . . . . . Piercing 988 | . . . . . . . 988 Highest Corruption 8 | . . . . . 3 8 8 Average Corruption 4 | . . . . . 3 2 6 Corruption Purged 5 | . . . . . . . 5 Corruption Blocked . | . . . . . . . . Effects 98 | . . . . . 26 30 42 Message Errors 22 | . . . . . 9 4 9 Matter Fused 17 | . . . . . 4 6 7 Heat Flow Errors 12 | . . . . . 3 3 6 Energy Discharges 12 | . . . . . 4 3 5 Parts Rejected 1 | . . . . . . . 1 Parts Fused 1 | . . . . . . 1 . Data Loss (minor) 13 | . . . . . 4 4 5 Data Loss (major) 8 | . . . . . 1 2 5 Misfires 7 | . . . . . . 4 3 Alerts 1 | . . . . . . 1 . Weapon Failures 4 | . . . . . 1 2 1 Overload Shots 16 | . . . . . . 5 11 Overflow Damage 540 | . . 39 . . 1 273 227 Projectiles 105 | . . . . . 1 92 12 Explosions 39 | . . 39 . . . . . Melee 396 | . . . . . . 181 215 Knockbacks 4 | . . . . . . 1 3 Impact 3 | . . . . . . 1 2 Kinetic . | . . . . . . . . Secondary 1 | . . . . . . . 1 Self-Inflicted Damage . | . . . . . . . . Shots . | . . . . . . . . Rammed 1 | . . . . . . . 1 Targets Rammed 1 | . . . . . . . 1 Kicked . | . . . . . . . . Crushed . | . . . . . . . . Highest Temperature 491 | . 144 234 . . 306 262 491 Average Temperature 115 | . 37 92 . . 85 58 192 Received Heat Transfer 2566 | . 18 39 . . 688 243 1578 Effects 9 | . . . . . . . 9 Shutdowns 2 | . . . . . . . 2 Interference 4 | . . . . . . . 4 Short Circuit 1 | . . . . . . . 1 Damage (minor) 1 | . . . . . . . 1 Damage (major) 1 | . . . . . . . 1 Siege Activations . | . . . . . . . . Martial Activations . | . . . . . . . . Shielding Activations . | . . . . . . . . Robots Disrupted . | . . . . . . . . Combat Hostiles . | . . . . . . . . Robots Corrupted 1 | . . . . . . . 1 Combat Hostiles 1 | . . . . . . . 1 Parts Fried 2 | . . . . . . . 2 Impact Corruptions 5 | . . . . . . 4 1 Robots Melted 1 | . . . . . 1 . . Combat Hostiles 1 | . . . . . 1 . . Parts Melted 10 | . 1 . . . 4 3 2 Heat Transferred 7304 | . 346 888 . . 2849 2074 1147 Parts Sabotaged . | . . . . . . . . Parts Stolen . | . . . . . . . . Parts Stripped . | . . . . . . . . Power Chain Reactions . | . . . . . . . . Alert | -11 -10 -10 -10 -9 -8 -7 -7 ------- Run | Yrd Mat Min Exi Min Mat Fac Sto Maximum Alert Level 1 | . . . . . 1 1 1 Low Security (%) 87 | 100 100 100 . 100 70 89 89 Level 1 12 | . . . . . 29 10 10 Level 2 . | . . . . . . . . Level 3 . | . . . . . . . . Level 4 . | . . . . . . . . Level 5 . | . . . . . . . . High Security . | . . . . . . . . Max Security . | . . . . . . . . Peak Influence 256 | 5 76 144 . . 250 256 250 Initial 111 | . . 1 . . . 89 111 Average 61 | . 14 29 . . 101 52 80 Influence Increases 2765 | 15 234 365 . . 578 550 1023 Destroy 0b10 Robot/C 1600 | . 80 220 . . 360 360 580 Destroy 0b10 Robot/NC 160 | 15 15 5 . . 45 25 55 Destroy Leader 444 | . 14 50 . . 110 104 166 Allied During Kill 102 | . . . . . . . 102 Successful Hack 86 | . 58 . . . 14 14 . Disable Machine 225 | . 30 90 . . 30 30 45 Destroy Structure 73 | . 7 . . . 4 17 45 Partial Spotted 45 | . 15 . . . . . 30 Lose Combat Pursuer 30 | . 15 . . . 15 . . Influence Decreases 2576 | 15 229 250 120 . 380 502 1080 Entered New Map 368 | . . 4 120 . . 109 135 Time Decay 1667 | 15 229 246 . . 340 363 474 Lost Part 301 | . . . . . 40 30 231 Lost Ally 240 | . . . . . . . 240 Squads Dispatched 23 | . 2 . . . 5 7 9 Investigation 5 | . 2 . . . 1 1 1 Extermination 7 | . . . . . . 4 3 Reinforcement 7 | . . . . . 2 2 3 Assault 2 | . . . . . . . 2 Garrison 2 | . . . . . 2 . . Intercept . | . . . . . . . . Searches Triggered . | . . . . . . . . Construction Impeded 1 | . . . . . . 1 . Haulers Reinforced 1 | . . . . . . 1 . Active Scanning Responses . | . . . . . . . . Cargo Convoy Interrupts . | . . . . . . . . Stealth | -11 -10 -10 -10 -9 -8 -7 -7 --------- Run | Yrd Mat Min Exi Min Mat Fac Sto Distress Signals 6 | . 1 . . . 3 . 2 Communications Jammed . | . . . . . . . . Distress Signals . | . . . . . . . . Times Spotted 114 | . 12 12 . . 26 20 44 Peak Tracking Total 9 | . 3 3 . . 3 4 9 Tactical Retreats 2 | . 1 . . . 1 . . Traps | -11 -10 -10 -10 -9 -8 -7 -7 ------- Run | Yrd Mat Min Exi Min Mat Fac Sto Traps Triggered 4 | . 1 . . . . 2 1 Indirectly . | . . . . . . . . Trap Hack Attempts . | . . . . . . . . Triggered . | . . . . . . . . Disarmed . | . . . . . . . . Reprogrammed . | . . . . . . . . Reused . | . . . . . . . . Traps Extracted . | . . . . . . . . Installed . | . . . . . . . . Triggered . | . . . . . . . . Machines | -11 -10 -10 -10 -9 -8 -7 -7 ---------- Run | Yrd Mat Min Exi Min Mat Fac Sto Machines Disabled 15 | . 2 6 . . 2 2 3 Max in Single Turn 4 | . 1 4 . . 1 1 1 Garrison Access 1 | . . . . . 1 . . Machines Repaired . | . . . . . . . . Machines Dismantled . | . . . . . . . . Machines Sabotaged . | . . . . . . . . Overloaded Fab Kills . | . . . . . . . . Hacking | -11 -10 -10 -10 -9 -8 -7 -7 --------- Run | Yrd Mat Min Exi Min Mat Fac Sto Machines Accessed 25 | . 8 . 2 . 9 4 2 Terminals 18 | . 8 . . . 5 3 2 Fabricators 1 | . . . . . . 1 . Repair Stations . | . . . . . . . . Recycling Units 1 | . . . . . 1 . . Scanalyzers 2 | . . . . . 2 . . Garrison Access 1 | . . . . . 1 . . Total Hacks 76 | . 30 . 7 . 27 7 5 Successful 37 | . 14 . 7 . 14 1 1 Failed 37 | . 15 . . . 12 6 4 Catastrophic 6 | . 2 . . . 2 1 1 Database Lockouts 2 | . 1 . . . 1 . . Manual 57 | . 29 . 1 . 19 4 4 Terminals 58 | . 30 . . . 17 6 5 Fabricators 1 | . . . . . . 1 . Repair Stations . | . . . . . . . . Recycling Units 2 | . . . . . 2 . . Scanalyzers 7 | . . . . . 7 . . Garrison Access 1 | . . . . . 1 . . Terminal Hacks 18 | . 7 . 7 . 2 1 1 Record 6 | . . . 6 . . . . Part Schematic 1 | . 1 . . . . . . Open Door 1 | . . . . . . . 1 Emergency Access Points 1 | . 1 . . . . . . Terminal Index 2 | . 1 . . . 1 . . Alert Level 1 | . 1 . . . . . . Unreport Threat 1 | . 1 . . . . . . Locate Traps 1 | . . . . . . 1 . Zone Layout 3 | . 2 . . . 1 . . Proto ID Catalog 1 | . . . 1 . . . . Fabricator Hacks . | . . . . . . . . Repair Station Hacks . | . . . . . . . . Recycling Unit Hacks . | . . . . . . . . Scanalyzer 5 | . . . . . 5 . . Insert Component 2 | . . . . . 2 . . Analyze 2 | . . . . . 2 . . Retrieve Study 1 | . . . . . 1 . . Garrison Access Hacks 1 | . . . . . 1 . . Seal Access 1 | . . . . . 1 . . Unauthorized Hacks 13 | . 7 . . . 6 . . Terminals 11 | . 7 . . . 4 . . Track 2 | . 1 . . . 1 . . Assimilate 1 | . 1 . . . . . . Botnet 6 | . 4 . . . 2 . . Operators 2 | . 1 . . . 1 . . Fabricators . | . . . . . . . . Repair Stations . | . . . . . . . . Recycling Units 2 | . . . . . 2 . . Monitor 1 | . . . . . 1 . . Recyclers 1 | . . . . . 1 . . Scanalyzers . | . . . . . . . . Garrison Access . | . . . . . . . . Data Cores Recovered . | . . . . . . . . Used . | . . . . . . . . Hacking Detections 20 | . 8 . . . 7 4 1 Full Trace Events 5 | . 2 . . . 2 . 1 Feedback Events . | . . . . . . . . Feedback Blocked . | . . . . . . . . Robot Schematics Acquired . | . . . . . . . . Robots Built . | . . . . . . . . Authchips . | . . . . . . . . Time . | . . . . . . . . Total Robot Build Rating . | . . . . . . . . Part Schematics Acquired 2 | . 1 . . . 1 . . Parts Built . | . . . . . . . . Authchips . | . . . . . . . . Time . | . . . . . . . . Total Part Build Rating . | . . . . . . . . Part Studies Acquired 1 | . . . . . 1 . . Parts Repaired . | . . . . . . . . Time . | . . . . . . . . Parts Recycled . | . . . . . . . . Recycled Matter . | . . . . . . . . Retrieved Matter . | . . . . . . . . Retrieved Components . | . . . . . . . . Parts Scanalyzed 2 | . . . . . 2 . . Part Schematics Acquired 1 | . . . . . 1 . . Parts Damaged . | . . . . . . . . Bothacking | -11 -10 -10 -10 -9 -8 -7 -7 ------------ Run | Yrd Mat Min Exi Min Mat Fac Sto Used RIF Installer . | . . . . . . . . Robots Hacked . | . . . . . . . . Non-combat . | . . . . . . . . Combat . | . . . . . . . . Robot Hacks Applied . | . . . . . . . . Relay Couplers Released 4 | . . . . . . 4 . Programmers 4 | . . . . . . 4 . Fabnet Peak Effective % . | . . . . . . . . Robots Rewired . | . . . . . . . . Allies Hacked 1 | . . . . . . . 1 Hacks Repelled . | . . . . . . . . Allies | -11 -10 -10 -10 -9 -8 -7 -7 -------- Run | Yrd Mat Min Exi Min Mat Fac Sto Total Allies 13 | . 1 . . . . . 12 Largest Group 10 | . 1 . . . . . 10 Highest-Rated Group 173 | . 10 . . . . . 173 Highest-Rated Ally 31 | . 10 . . . . . 31 Total Orders . | . . . . . . . . Ally Attacks 93 | . . . . . . . 93 Total Damage 1311 | . . . . . . . 1311 Kills 9 | . . . . . . . 9 Allies Corrupted . | . . . . . . . . Allies Melted . | . . . . . . . . Intel | -11 -10 -10 -10 -9 -8 -7 -7 ------- Run | Yrd Mat Min Exi Min Mat Fac Sto Active Infowar (turns) 7674 | 60 757 784 1082 117 1124 2614 1136 Terrain 324 | 34 290 . . . . . . Seismic 7674 | 60 757 784 1082 117 1124 2614 1136 Robot Analysis Total . | . . . . . . . . Derelict Logs Recovered 3 | . . 3 . . . . . Drone Launches . | . . . . . . . . Drone Recoveries . | . . . . . . . . Exploration | -11 -10 -10 -10 -9 -8 -7 -7 ------------- Run | Yrd Mat Min Exi Min Mat Fac Sto Turns Passed 9046 | 142 757 978 1082 117 1985 2614 1371 Spaces Moved 3957 | 62 388 538 675 74 713 995 512 Core 5 | 5 . . . . . . . Treads 3548 | 57 388 538 675 74 713 995 108 Legs 69 | . . . . . . . 69 Wheels 52 | . . . . . . . 52 Hover 282 | . . . . . . . 282 Flight 1 | . . . . . . . 1 Fastest Speed 50 | 50 160 160 160 160 155 156 98 Average Speed 156 | 151 160 160 160 160 156 161 138 Slowest Speed 470 | 160 160 160 160 160 232 200 470 Overloaded Moves . | . . . . . . . . Propulsion Burnouts . | . . . . . . . . Robots Hopped . | . . . . . . . . Potential Cave-ins 2 | . . . . . . 2 . Cave-ins Triggered . | . . . . . . . . Exploration Rate (%) 51 | 3 72 91 91 15 49 19 72 Regions Visited 7 Branch Regions 4 Pre-discovered Areas 1 | . . . 1 . . . . Known Exits Taken 1 | . . . . . . 1 . Unknown Exits Taken 6 | 1 1 1 1 1 1 . . Scrap Searched . | . . . . . . . . Spaces Dug 30 | . 7 . . . 1 10 12 Terrain Destroyed 57 | . 8 . . . 2 16 31 Melee 18 | . . . . . . 6 12 Projectile 26 | . 8 . . . 2 10 6 AOE 13 | . . . . . . . 13 Terrain Rammed . | . . . . . . . . Walls Destroyed . | . . . . . . . . Machines Disabled . | . . . . . . . . Actions | -11 -10 -10 -10 -9 -8 -7 -7 --------- Run | Yrd Mat Min Exi Min Mat Fac Sto Total 6201 | 84 467 621 678 73 1420 1874 984 Wait 1682 | . 34 51 . . 551 754 292 Move 3950 | 61 387 537 674 73 712 994 512 Hop . | . . . . . . . . Pick Up 63 | 4 6 3 2 . 18 11 19 Fast Attach 43 | 6 2 . . . 14 4 17 Attach 25 | . . 1 . . 3 3 18 Detach 4 | . . . . . . . 4 Swap 56 | . 8 7 1 . 11 19 10 Drop 67 | . 4 4 1 . 25 20 13 Fire 248 | 13 26 18 . . 86 58 47 Melee 62 | . . . . . . 11 51 Ram . | . . . . . . . . Kick . | . . . . . . . . Crush 1 | . . . . . . . 1 Escape Stasis . | . . . . . . . . Rewire . | . . . . . . . . Trap . | . . . . . . . . Miscellaneous . | . . . . . . . . Route ------- -11/Scrapyard -10/Materials (discovered 2 exits: [*Mat] / [*Min]) -10/Mines (discovered 4 exits: [*Mat x2] / *Exi / [*Sub]) -10/Exiles -9/Mines -8/Materials -7/Factory -7/Storage History --------- Turn | Location | Event 35 | -11/Scrapyard | Discovered new exit (range 16) 143 | -11/Scrapyard | Entered Materials 324 | -10/Materials | Build established: Mutant 356 | -10/Materials | Discovered new exit (range 16) 585 | -10/Materials | Discovered new exit (range 9) 779 | -10/Materials | Central database locked down 900 | -10/Materials | Entered Mines 981 | -10/Mines | Discovered new exit (range 5) 1060 | -10/Mines | Received a Rocket Launcher from a helpful Derelict 1096 | -10/Mines | Found a Scrap Suit stashed away for nefarious purposes 1101 | -10/Mines | Found Scrap Suit 1119 | -10/Mines | Assembled infested the area 1122 | -10/Mines | Learned 2 Materials zone layouts 1124 | -10/Mines | Assisted by a Guerilla fighting off Assembled 1293 | -10/Mines | Learned Materials trap positions 1297 | -10/Mines | Learned Materials interactive machine intel 1330 | -10/Mines | Discovered new exit (range 9) 1700 | -10/Mines | Found Botcube 1755 | -10/Mines | Discovered new exit (range 10) 1871 | -10/Mines | Deemed a non-threat by the Exiles lab entrance 1871 | -10/Mines | Discovered new exit (range 5) 1878 | -10/Mines | Entered Exiles 1915 | -10/Exiles | Met 8R-AWN 1944 | -10/Exiles | Met EX-HEX 2039 | -10/Exiles | Met EX-DEC 2065 | -10/Exiles | Learned location of Zion (-7) 2102 | -10/Exiles | Met EX-BIN 2135 | -10/Exiles | Aligned with FarCom system 2137 | -10/Exiles | Given EX-Vault access code 2174 | -10/Exiles | Opened EX-Vault 2187 | -10/Exiles | Found Flying Fortress v7 2218 | -10/Exiles | Warned to stay clear of 0b10 Research branches 2330 | -10/Exiles | Discovered new exit (range 14) 2459 | -10/Exiles | Visited The Gauntlet 2960 | -10/Exiles | Left Exiles lab with Flying Fortress v7 2960 | -10/Exiles | Entered Mines 2964 | -9/Mines | Met a Derelict bent on vengeance 3000 | -9/Mines | Found a damaged Exp. Sensor Array with a note attached 3056 | -9/Mines | Discovered new exit (range 7) 3077 | -9/Mines | Entered Materials 3077 | -8/Materials | Evolved 4 slots: Propulsion x2, Utility x2 3079 | -8/Materials | Loaded intel: 8 trap records 3080 | -8/Materials | Loaded intel: 19 interactive machine locations 4003 | -8/Materials | Build established: Scavenger-Mutant 4344 | -8/Materials | Garrison activated, responded to threat 4899 | -8/Materials | Discovered new exit (range 3) 4952 | -8/Materials | Central database locked down 5062 | -8/Materials | Entered Factory 5062 | -7/Factory | Evolved 2 slots: Power x1, Weapon x1 5366 | -7/Factory | Build established: Scavenger-Skirmisher 6752 | -7/Factory | Build established: Scavenger-Mutant 7229 | -7/Factory | Discovered new exit (range 15) 7286 | -7/Factory | Identified exit to Storage 7676 | -7/Factory | Entered Storage 7817 | -7/Storage | Build established: Scavenger-Skirmisher 8006 | -7/Storage | Lost 3 parts (1n1u1w) 8154 | -7/Storage | Met a pair of Derelict thieves 8366 | -7/Storage | Core integrity fell below 50% 8395 | -7/Storage | Core integrity fell below 20% 8409 | -7/Storage | Lost 15 parts (2p3n3u7w) 8705 | -7/Storage | Assisted by bots powering up and referring to "LRC-V3" 8854 | -7/Storage | Lost 8 allies 9047 | -7/Storage | Destroyed by H-55 Commando with Assault Rifle Last Messages --------------- 08963_ Penetrated by Slug. 08966_ System corrupted: Matter fused (-8). 08968_ Penetrated by Slug. 08974_ Slug penetrates Wall. 08974_ Lgt. Nuclear Core destroyed. 08987_ Storage Shell breached. 08988_ QR=IYHSKK=TAE3CIMYPCH3DKV PKCH